[Event "50+ Deutsche Senioren-Mannschaftsmeisterschaft der Landesverbände 2022"]
[Site "Magdeburg, Germany"]
[Date "2022.08.29"]
[Round "1.1"]
[White "Ploetz, Werner, Dr."]
[Black "Blodig, Reinhard"]
[Result "1-0"]
[TimeControl "90min/40 + 30min + 30s/Zug"]
[WhiteElo "2250"]
[BlackElo "2014"]

1. e4 {[%emt 00:00:40]} d6 2. d4 g6 3. Nc3 {[%emt 00:00:19]} Bg7 {[%emt
00:00:11]} 4. f4 {[%emt 00:00:17]} Nf6 {[%emt 00:00:29]} 5. Nf3 {[%emt
00:00:04]} c5 {[%emt 00:00:03]} 6. dxc5 {[%emt 00:00:51]} Qa5 7. Bd3 {[%emt
00:00:42]} Qxc5 {[%emt 00:00:25]} 8. Qe2 {[%emt 00:00:20]} Bg4 {[%emt 00:00:31]}
9. Be3 {[%emt 00:00:21]} Qa5 {[%emt 00:00:11]} 10. O-O {[%emt 00:01:08]} Nc6 11.
h3 {[%emt 00:00:50]} Bxf3 {[%emt 00:00:22]} 12. Qxf3 {[%emt 00:00:09]} Nd7
{[%emt 00:00:18]} 13. Bd2 {[%emt 00:04:13]} O-O {[%emt 00:03:39]} 14. Rab1
{[%emt 00:02:46]} a6 {[%emt 00:02:19]} 15. Kh1 {[%emt 00:01:30]} e6 {[%emt
00:10:15]} 16. Rfd1 {[%emt 00:04:55]} Qc7 {[%emt 00:01:26]} 17. Ne2 {[%emt
00:02:15]} b5 {[%emt 00:03:40]} 18. a3 {[%emt 00:03:06]} Rac8 {[%emt 00:05:33]}
19. Bc3 {[%emt 00:02:51]} Bxc3 {[%emt 00:02:55]} 20. Nxc3 {[%emt 00:00:39]} b4
{[%emt 00:02:48]} 21. axb4 {[%emt 00:01:01]} Nxb4 {[%emt 00:00:15]} 22. Rd2
{[%emt 00:03:38]} Nc5 {[%emt 00:05:42]} 23. Bf1 {[%emt 00:03:56]} Qc6 {[%emt
00:02:25]} 24. Rbd1 {[%emt 00:03:39]} Rfd8 {[%emt 00:02:59]} 25. Qe3 {[%emt
00:14:28]} d5 {[%emt 00:17:39]} 26. exd5 {[%emt 00:05:38]} exd5 {[%emt
00:02:15]} 27. f5 {[%emt 00:04:27]} d4 {[%emt 00:02:52]} 28. Rxd4 {[%emt
00:04:58]} Rxd4 {[%emt 00:01:00]} 29. Qxd4 {[%emt 00:01:31]} Nxc2 {[%emt
00:00:26]} 30. Qf4 {[%emt 00:09:33]} a5 {[%emt 00:20:14]} 31. Rd6 {[%emt
00:04:03]} Qe8 {[%emt 00:01:16]} 32. fxg6 {[%emt 00:07:00]} hxg6 {[%emt
00:01:54]} 33. Bc4 {[%emt 00:00:47]} Kg7 {[%emt 00:03:25]} 34. Rd2 {[%emt
00:03:54]} Qe1+ {[%emt 00:03:09]} 35. Kh2 {[%emt 00:00:54]} Ne3 {[%emt
00:03:18]} 36. Qxf7+ {[%emt 00:02:39]} Kh6 {[%emt 00:00:28]} 37. Qf4+ {[%emt
00:02:08]} Kg7 {[%emt 00:01:02]} 38. Re2 {[%emt 00:00:45]} Nf1+ {[%emt
00:04:02]} 39. Kg1 {[%emt 00:00:04]} Qg3 {[%emt 00:00:37]} 40. Re7+ {[%emt
00:00:58]} 1-0

[Event "50+ Deutsche Senioren-Mannschaftsmeisterschaft der Landesverbände 2022"]
[Site "Magdeburg, Germany"]
[Date "2022.08.29"]
[Round "1.2"]
[White "Schmitt, Guenter"]
[Black "Schnelzer, Reinhold, Dr."]
[Result "0-1"]
[TimeControl "90min/40 + 30min + 30s/Zug"]
[WhiteElo "2029"]
[BlackElo "2143"]

1. d4 {[%emt 00:00:39]} d5 2. Bf4 {[%emt 00:00:06]} Nf6 {[%emt 00:00:51]} 3. e3
{[%emt 00:00:24]} c5 {[%emt 00:01:33]} 4. c3 {[%emt 00:00:24]} Nc6 {[%emt
00:00:59]} 5. Bd3 {[%emt 00:04:57]} Qb6 {[%emt 00:04:05]} 6. Qb3 {[%emt
00:04:46]} c4 {[%emt 00:03:46]} 7. Qxb6 {[%emt 00:00:33]} axb6 {[%emt 00:00:36]}
8. Bc2 {[%emt 00:00:47]} b5 {[%emt 00:01:07]} 9. b3 {[%emt 00:15:05]} b4 {[%emt
00:17:45]} 10. f3 {[%emt 00:06:27]} e6 {[%emt 00:01:58]} 11. Ne2 {[%emt
00:01:23]} Be7 {[%emt 00:01:45]} 12. g4 {[%emt 00:02:14]} Bd7 {[%emt 00:05:12]}
13. Kf2 {[%emt 00:07:10]} bxc3 {[%emt 00:06:33]} 14. bxc4 {[%emt 00:00:44]} Nb4
{[%emt 00:09:40]} 15. Bb3 {[%emt 00:02:02]} dxc4 {[%emt 00:01:08]} 16. Nbxc3
{[%emt 00:02:04]} cxb3 {[%emt 00:00:42]} 17. axb3 {[%emt 00:00:13]} O-O {[%emt
00:01:26]} 18. e4 {[%emt 00:01:21]} Nd3+ {[%emt 00:02:19]} 19. Ke3 {[%emt
00:00:36]} Nxf4 {[%emt 00:00:05]} 20. Nxf4 {[%emt 00:01:26]} Rfc8 {[%emt
00:00:15]} 21. Kd3 {[%emt 00:01:26]} Bb4 {[%emt 00:01:00]} 22. Rxa8 {[%emt
00:01:13]} Rxa8 {[%emt 00:00:06]} 23. e5 {[%emt 00:01:12]} Bxc3 {[%emt
00:01:54]} 24. exf6 {[%emt 00:00:44]} Bb4 {[%emt 00:00:38]} 25. fxg7 {[%emt
00:07:28]} Kxg7 {[%emt 00:03:46]} 26. g5 {[%emt 00:00:29]} Kf8 {[%emt 00:02:33]}
27. Kc4 {[%emt 00:03:01]} Be7 {[%emt 00:00:48]} 28. h4 {[%emt 00:00:15]} Bc6
{[%emt 00:01:24]} 29. Rh3 {[%emt 00:00:40]} Rc8 {[%emt 00:01:03]} 30. Kd3 {[%emt
00:00:45]} Bd6 {[%emt 00:02:18]} 31. Nh5 {[%emt 00:01:42]} Ke7 {[%emt 00:00:27]}
32. f4 {[%emt 00:01:46]} Bd5 {[%emt 00:00:38]} 33. f5 {[%emt 00:02:43]} Bxb3
{[%emt 00:03:24]} 34. fxe6 {[%emt 00:01:00]} Kxe6 {[%emt 00:02:07]} 35. Re3+
{[%emt 00:04:16]} Kf5 {[%emt 00:00:45]} 36. Nf6 {[%emt 00:05:00]} Bc4+ {[%emt
00:02:07]} 37. Kc3 {[%emt 00:01:07]} h6 {[%emt 00:01:02]} 38. Re8 {[%emt
00:01:10]} Rc7 {[%emt 00:02:23]} 39. gxh6 {[%emt 00:01:13]} Bb5+ {[%emt
00:05:02]} 40. Kb2 {[%emt 00:00:24]} Bxe8 {[%emt 00:00:44]} 41. h7 {[%emt
00:01:58]} Kxf6 {[%emt 00:00:56]} 42. h8=Q+ Ke7 {[%emt 00:00:07]} 43. h5 {[%emt
00:00:52]} Bd7 {[%emt 00:05:47]} 44. h6 {[%emt 00:00:29]} Bf5 {[%emt 00:01:11]}
45. h7 {[%emt 00:00:25]} Rc2+ {[%emt 00:00:43]} 46. Kb3 {[%emt 00:00:53]} Rh2
{[%emt 00:00:39]} 47. Qg7 {[%emt 00:00:05]} Bxh7 {[%emt 00:02:23]} 48. Qg5+
{[%emt 00:00:29]} Ke6 {[%emt 00:03:50]} 49. d5+ {[%emt 00:01:59]} Kd7 {[%emt
00:00:20]} 50. Qg4+ {[%emt 00:00:23]} Kd8 {[%emt 00:01:11]} 51. Qg5+ {[%emt
00:01:02]} Kc7 {[%emt 00:00:13]} 52. Qf6 {[%emt 00:02:06]} Bc2+ {[%emt
00:00:48]} 53. Kc4 {[%emt 00:00:28]} Bg6 {[%emt 00:00:12]} 54. Kb3 {[%emt
00:02:39]} Rc2 {[%emt 00:00:41]} 55. Qd4 {[%emt 00:03:37]} Rc5 {[%emt 00:00:29]}
56. Kb2 {[%emt 00:00:34]} Bf5 {[%emt 00:02:45]} 57. Kb3 {[%emt 00:02:34]} Rxd5
{[%emt 00:02:19]} 0-1

[Event "50+ Deutsche Senioren-Mannschaftsmeisterschaft der Landesverbände 2022"]
[Site "Magdeburg, Germany"]
[Date "2022.08.29"]
[Round "1.3"]
[White "Kraemer, Max"]
[Black "Neubauer, Jaroslaus"]
[Result "1-0"]
[TimeControl "90min/40 + 30min + 30s/Zug"]
[WhiteElo "2059"]
[BlackElo "2034"]

1. d4 Nf6 2. c4 {[%emt 00:00:04]} g6 3. Nc3 {[%emt 00:00:09]} Bg7 {[%emt
00:00:03]} 4. e4 {[%emt 00:00:13]} d6 {[%emt 00:00:16]} 5. Nf3 O-O {[%emt
00:00:16]} 6. Be2 {[%emt 00:00:15]} Nbd7 {[%emt 00:00:45]} 7. O-O {[%emt
00:01:04]} e5 {[%emt 00:00:04]} 8. Be3 {[%emt 00:00:04]} c6 {[%emt 00:01:42]} 9.
dxe5 {[%emt 00:06:35]} dxe5 {[%emt 00:00:18]} 10. Qc1 {[%emt 00:06:42]} Qc7
{[%emt 00:01:34]} 11. Rd1 {[%emt 00:03:09]} Re8 {[%emt 00:04:00]} 12. b4 {[%emt
00:06:08]} Nf8 {[%emt 00:02:49]} 13. Bc5 {[%emt 00:05:18]} Bg4 {[%emt 00:10:40]}
14. Bd6 {[%emt 00:06:33]} Qc8 {[%emt 00:00:35]} 15. h3 {[%emt 00:05:06]} Bxf3
{[%emt 00:01:03]} 16. Bxf3 {[%emt 00:00:04]} h6 {[%emt 00:03:46]} 17. b5 {[%emt
00:09:38]} g5 {[%emt 00:00:18]} 18. Ne2 {[%emt 00:04:37]} Ng6 {[%emt 00:01:16]}
19. Ng3 {[%emt 00:02:02]} Nh4 {[%emt 00:06:05]} 20. Qe3 {[%emt 00:03:14]} g4
{[%emt 00:03:59]} 21. hxg4 {[%emt 00:01:00]} Nxg4 {[%emt 00:00:17]} 22. Qe2
{[%emt 00:00:48]} Nf6 {[%emt 00:04:37]} 23. Nh5 {[%emt 00:04:29]} Nxf3+ {[%emt
00:02:22]} 24. Qxf3 {[%emt 00:00:08]} Nxh5 {[%emt 00:00:43]} 25. Qxh5 {[%emt
00:00:24]} Qe6 {[%emt 00:00:08]} 26. bxc6 {[%emt 00:02:55]} bxc6 {[%emt
00:00:22]} 27. c5 {[%emt 00:00:30]} Qg6 {[%emt 00:01:27]} 28. Qxg6 {[%emt
00:00:59]} fxg6 {[%emt 00:00:17]} 29. Rab1 {[%emt 00:00:28]} Rad8 {[%emt
00:05:34]} 30. Rb7 {[%emt 00:02:04]} Bf8 {[%emt 00:00:20]} 31. Rxa7 {[%emt
00:00:35]} Re6 {[%emt 00:00:05]} 32. Rc7 {[%emt 00:02:27]} Bxd6 {[%emt
00:05:28]} 33. cxd6 {[%emt 00:03:38]} Rexd6 {[%emt 00:01:24]} 34. Rxd6 {[%emt
00:00:08]} Rxd6 {[%emt 00:00:08]} 35. f3 {[%emt 00:02:30]} Rd1+ {[%emt
00:02:34]} 36. Kh2 Rc1 {[%emt 00:00:06]} 37. a4 {[%emt 00:00:12]} Rc5 {[%emt
00:01:23]} 38. Kg3 {[%emt 00:02:25]} Kh8 {[%emt 00:01:25]} 39. Kg4 {[%emt
00:00:41]} Kg8 {[%emt 00:00:09]} 40. g3 {[%emt 00:01:40]} Kh8 {[%emt 00:00:51]}
41. Ra7 {[%emt 00:01:38]} Kg8 {[%emt 00:01:38]} 42. a5 {[%emt 00:00:10]} Rc1
{[%emt 00:01:19]} 43. Re7 {[%emt 00:01:40]} Kf8 {[%emt 00:06:41]} 44. Rxe5
{[%emt 00:02:13]} Kf7 {[%emt 00:00:29]} 45. f4 {[%emt 00:04:50]} Rc3 {[%emt
00:03:13]} 46. f5 {[%emt 00:02:16]} gxf5+ {[%emt 00:01:13]} 47. Rxf5+ {[%emt
00:04:28]} Ke6 {[%emt 00:03:30]} 48. Rh5 {[%emt 00:00:05]} Kd7 {[%emt 00:01:40]}
49. Rxh6 {[%emt 00:00:38]} Ra3 {[%emt 00:01:08]} 50. Rh5 {[%emt 00:01:24]} Kd6
{[%emt 00:01:30]} 51. Kf4 {[%emt 00:00:22]} c5 {[%emt 00:00:17]} 52. Rh6+ {[%emt
00:02:54]} Kc7 {[%emt 00:00:18]} 53. a6 {[%emt 00:00:47]} c4 {[%emt 00:00:23]}
54. g4 {[%emt 00:02:08]} c3 {[%emt 00:00:28]} 55. Ke3 {[%emt 00:00:34]} c2+
{[%emt 00:00:35]} 56. Kd2 {[%emt 00:00:11]} Rc3 {[%emt 00:00:03]} 57. Kc1 {[%emt
00:01:26]} Re3 {[%emt 00:03:00]} 58. Rh7+ {[%emt 00:01:48]} Kb8 {[%emt
00:01:07]} 59. Rb7+ {[%emt 00:00:31]} Ka8 {[%emt 00:00:34]} 60. Rb4 {[%emt
00:00:15]} Rg3 {[%emt 00:00:21]} 61. e5 {[%emt 00:00:19]} Re3 {[%emt 00:00:26]}
62. Kxc2 {[%emt 00:01:45]} Rxe5 {[%emt 00:00:15]} 63. Kd3 {[%emt 00:00:21]} Ka7
{[%emt 00:00:30]} 64. Ra4 {[%emt 00:01:10]} Re1 {[%emt 00:01:11]} 65. Kd4 {[%emt
00:01:19]} Re2 {[%emt 00:01:19]} 66. Kd5 {[%emt 00:00:15]} Re1 {[%emt 00:00:17]}
67. Kd6 {[%emt 00:00:45]} Re2 {[%emt 00:00:22]} 68. g5 {[%emt 00:00:35]} Rg2
{[%emt 00:01:19]} 69. Ra5 {[%emt 00:00:15]} Re2 {[%emt 00:00:22]} 70. Re5 {[%emt
00:00:05]} Rg2 {[%emt 00:00:30]} 71. Ke6 {[%emt 00:00:05]} Kxa6 {[%emt
00:01:00]} 72. Kf6 {[%emt 00:00:31]} Kb7 {[%emt 00:02:11]} 73. g6 Kc8 {[%emt
00:00:03]} 74. g7 {[%emt 00:00:46]} Kd8 {[%emt 00:00:47]} 75. Rg5 {[%emt
00:00:07]} 1-0

[Event "50+ Deutsche Senioren-Mannschaftsmeisterschaft der Landesverbände 2022"]
[Site "Magdeburg, Germany"]
[Date "2022.08.29"]
[Round "1.4"]
[White "Fiedler, Wolfgang"]
[Black "Greul, Hans"]
[Result "0-1"]
[TimeControl "90min/40 + 30min + 30s/Zug"]
[WhiteElo "1995"]
[BlackElo "2016"]

1. f4 {[%emt 00:00:28]} d5 {[%emt 00:00:04]} 2. Nf3 Nf6 {[%emt 00:00:39]} 3. d4
{[%emt 00:00:06]} e6 {[%emt 00:03:23]} 4. e3 Be7 {[%emt 00:00:26]} 5. Bd3 {[%emt
00:00:06]} c5 {[%emt 00:00:17]} 6. c3 {[%emt 00:00:20]} O-O {[%emt 00:00:15]} 7.
O-O {[%emt 00:00:13]} b6 {[%emt 00:00:15]} 8. Ne5 {[%emt 00:00:16]} Qc7 {[%emt
00:00:19]} 9. Nd2 {[%emt 00:00:31]} Ba6 {[%emt 00:05:07]} 10. Bxa6 {[%emt
00:00:24]} Nxa6 {[%emt 00:00:27]} 11. Qa4 {[%emt 00:00:11]} Qb7 {[%emt
00:03:02]} 12. Qc6 {[%emt 00:00:07]} Qxc6 {[%emt 00:02:33]} 13. Nxc6 {[%emt
00:00:57]} Bd6 {[%emt 00:01:01]} 14. h3 b5 {[%emt 00:08:17]} 15. a3 {[%emt
00:02:34]} Nc7 {[%emt 00:00:40]} 16. Ne5 {[%emt 00:00:47]} a5 {[%emt 00:03:02]}
17. g4 {[%emt 00:06:40]} cxd4 {[%emt 00:03:04]} 18. cxd4 {[%emt 00:00:24]} Rfc8
{[%emt 00:09:30]} 19. Ndf3 {[%emt 00:04:45]} Ne4 {[%emt 00:01:26]} 20. Bd2
{[%emt 00:00:21]} Ne8 {[%emt 00:08:21]} 21. Rfc1 {[%emt 00:00:44]} a4 {[%emt
00:00:26]} 22. Nd3 {[%emt 00:00:25]} Rc4 {[%emt 00:01:09]} 23. Bb4 {[%emt
00:01:36]} Rac8 {[%emt 00:00:59]} 24. Nd2 {[%emt 00:08:33]} Rxc1+ {[%emt
00:03:59]} 25. Rxc1 {[%emt 00:00:19]} Rxc1+ {[%emt 00:00:07]} 26. Nxc1 {[%emt
00:00:45]} Bxb4 {[%emt 00:00:10]} 27. Nxe4 {[%emt 00:00:11]} Bxa3 {[%emt
00:02:36]} 28. bxa3 {[%emt 00:09:27]} dxe4 {[%emt 00:00:18]} 29. Na2 {[%emt
00:04:37]} Nd6 {[%emt 00:00:34]} 30. Nc3 {[%emt 00:00:10]} Kf8 {[%emt 00:00:28]}
31. Kf2 {[%emt 00:00:41]} Ke7 32. Ke2 {[%emt 00:04:05]} Ke8 {[%emt 00:08:09]}
0-1

[Event "50+ Deutsche Senioren-Mannschaftsmeisterschaft der Landesverbände 2022"]
[Site "Magdeburg, Germany"]
[Date "2022.08.29"]
[Round "1.5"]
[White "Raupp, Thomas"]
[Black "Weitz, Andreas"]
[Result "0-1"]
[TimeControl "90min/40 + 30min + 30s/Zug"]
[WhiteElo "2282"]
[BlackElo "1939"]

1. d4 {[%emt 00:00:13]} d5 {[%emt 00:00:11]} 2. c4 {[%emt 00:00:12]} c6 {[%emt
00:00:11]} 3. Nc3 {[%emt 00:00:36]} e6 {[%emt 00:00:30]} 4. e3 {[%emt 00:01:03]}
f5 {[%emt 00:00:16]} 5. Nf3 {[%emt 00:00:13]} Nf6 {[%emt 00:00:07]} 6. Bd3
{[%emt 00:00:17]} Bd6 {[%emt 00:01:09]} 7. O-O {[%emt 00:00:11]} O-O {[%emt
00:00:08]} 8. b3 {[%emt 00:00:33]} Ne4 {[%emt 00:00:25]} 9. Bb2 {[%emt
00:00:44]} b6 {[%emt 00:04:49]} 10. Ne2 {[%emt 00:05:53]} Nd7 {[%emt 00:01:33]}
11. Ne5 {[%emt 00:12:28]} Bxe5 {[%emt 00:02:04]} 12. dxe5 {[%emt 00:00:08]} Re8
{[%emt 00:01:49]} 13. cxd5 {[%emt 00:06:44]} cxd5 {[%emt 00:02:17]} 14. b4
{[%emt 00:11:48]} a5 {[%emt 00:04:46]} 15. f3 {[%emt 00:01:42]} Ng5 {[%emt
00:02:24]} 16. Bxf5 {[%emt 00:06:56]} axb4 {[%emt 00:01:10]} 17. Bc2 {[%emt
00:22:30]} Nc5 {[%emt 00:03:20]} 18. Bd4 {[%emt 00:03:20]} Ba6 {[%emt 00:03:10]}
19. Re1 {[%emt 00:07:36]} Bc4 {[%emt 00:02:09]} 20. Qb1 {[%emt 00:00:06]} h6
{[%emt 00:07:59]} 21. Nf4 {[%emt 00:05:15]} Ra5 {[%emt 00:05:33]} 22. Bg6 {[%emt
00:03:22]} Rf8 {[%emt 00:06:38]} 23. Qxb4 {[%emt 00:08:23]} Nxf3+ {[%emt
00:04:29]} 24. gxf3 {[%emt 00:00:38]} Qg5+ {[%emt 00:00:12]} 25. Kh1 {[%emt
00:02:05]} Rb5 {[%emt 00:01:44]} 26. Qd2 {[%emt 00:00:36]} Rxf4 {[%emt
00:00:47]} 27. Rg1 {[%emt 00:01:12]} Rxd4 {[%emt 00:01:00]} 28. Qxd4 {[%emt
00:00:06]} Qe7 {[%emt 00:00:34]} 29. Rab1 {[%emt 00:00:46]} Rxb1 {[%emt
00:03:37]} 30. Bxb1 Qf7 {[%emt 00:00:50]} 31. Rg3 {[%emt 00:00:58]} Be2 {[%emt
00:01:02]} 32. Kg2 {[%emt 00:00:17]} Nd7 {[%emt 00:01:02]} 33. Kf2 {[%emt
00:01:52]} Bc4 {[%emt 00:01:54]} 34. Ke1 {[%emt 00:02:29]} Qe8 0-1

[Event "50+ Deutsche Senioren-Mannschaftsmeisterschaft der Landesverbände 2022"]
[Site "Magdeburg, Germany"]
[Date "2022.08.29"]
[Round "1.6"]
[White "Domsgen, Bernd"]
[Black "Schneider, Bernd"]
[Result "0-1"]
[TimeControl "90min/40 + 30min + 30s/Zug"]
[WhiteElo "1930"]
[BlackElo "2166"]

1. e4 {[%emt 00:00:05]} c5 {[%emt 00:00:06]} 2. Nf3 {[%emt 00:00:10]} e6 {[%emt
00:00:12]} 3. d4 {[%emt 00:05:09]} cxd4 {[%emt 00:00:43]} 4. Nxd4 a6 {[%emt
00:00:06]} 5. Nc3 {[%emt 00:05:40]} Qc7 {[%emt 00:00:44]} 6. Be3 {[%emt
00:07:05]} Nf6 {[%emt 00:00:24]} 7. Bd3 {[%emt 00:01:05]} Bc5 {[%emt 00:07:23]}
8. h3 {[%emt 00:09:44]} d6 {[%emt 00:01:05]} 9. O-O {[%emt 00:01:22]} e5 {[%emt
00:04:26]} 10. Nf5 {[%emt 00:14:40]} Bxf5 {[%emt 00:00:21]} 11. exf5 {[%emt
00:00:05]} Bxe3 {[%emt 00:06:43]} 12. fxe3 {[%emt 00:00:09]} Qb6 {[%emt
00:00:05]} 13. Qf3 {[%emt 00:03:12]} Nbd7 {[%emt 00:01:02]} 14. Kh1 {[%emt
00:06:53]} Nc5 {[%emt 00:04:08]} 15. Nd5 {[%emt 00:01:19]} Nxd5 {[%emt
00:00:42]} 16. Qxd5 {[%emt 00:00:05]} Qc6 {[%emt 00:00:48]} 17. Bc4 {[%emt
00:04:16]} Qxd5 {[%emt 00:00:09]} 18. Bxd5 {[%emt 00:00:05]} a5 {[%emt
00:02:12]} 19. a3 {[%emt 00:02:45]} Ra7 {[%emt 00:02:45]} 20. b4 {[%emt
00:02:53]} Nd7 {[%emt 00:00:19]} 21. bxa5 {[%emt 00:02:04]} Ke7 {[%emt
00:06:59]} 22. Rfb1 {[%emt 00:01:41]} Rxa5 {[%emt 00:03:42]} 23. Bxb7 {[%emt
00:00:11]} Nc5 {[%emt 00:00:28]} 24. Bd5 {[%emt 00:09:37]} Rc8 {[%emt 00:01:42]}
25. Rb6 {[%emt 00:01:21]} Rc7 {[%emt 00:00:09]} 26. Rc6 {[%emt 00:03:53]} Rca7
27. e4 {[%emt 00:01:45]} Ra4 {[%emt 00:02:40]} 28. c4 {[%emt 00:00:37]} h5
{[%emt 00:01:41]} 29. g4 {[%emt 00:00:51]} Nb3 {[%emt 00:00:31]} 30. Ra2 {[%emt
00:01:16]} hxg4 {[%emt 00:04:09]} 31. hxg4 Nd4 {[%emt 00:03:09]} 32. Rc8 {[%emt
00:00:11]} Nf3 {[%emt 00:01:07]} 33. Kg2 {[%emt 00:02:15]} Ng5 {[%emt 00:00:12]}
34. Rb8 {[%emt 00:05:09]} Rxa3 {[%emt 00:05:47]} 35. Rxa3 {[%emt 00:00:12]} Rxa3
{[%emt 00:00:06]} 36. Rb7+ {[%emt 00:00:28]} Ke8 {[%emt 00:00:46]} 37. Rb8+ Kd7
{[%emt 00:00:08]} 38. Rg8 {[%emt 00:00:28]} Ke7 {[%emt 00:02:42]} 39. Ra8 {[%emt
00:08:21]} Rxa8 40. Bxa8 Kf6 41. Kg3 {[%emt 00:00:37]} Nh7 {[%emt 00:01:55]} 42.
Bc6 {[%emt 00:02:04]} Kg5 {[%emt 00:00:10]} 43. Bd5 {[%emt 00:02:28]} Nf6 {[%emt
00:00:08]} 44. Kf3 {[%emt 00:12:53]} Nxg4 {[%emt 00:15:09]} 45. Bxf7 {[%emt
00:00:06]} Kh4 {[%emt 00:01:05]} 46. Be6 {[%emt 00:02:41]} Nf6 {[%emt 00:00:31]}
47. Bc8 {[%emt 00:02:44]} Nh7 {[%emt 00:00:11]} 48. Bb7 {[%emt 00:01:28]} Ng5+
{[%emt 00:00:18]} 49. Ke3 {[%emt 00:00:51]} Kg3 {[%emt 00:00:15]} 50. Bd5 {[%emt
00:01:53]} Nf3 {[%emt 00:00:49]} 51. Bc6 {[%emt 00:03:07]} Nh4 {[%emt 00:00:05]}
52. Bb7 {[%emt 00:04:18]} Ng2+ 53. Ke2 {[%emt 00:01:10]} Kf4 {[%emt 00:00:16]}
54. Bc6 {[%emt 00:00:28]} Ne3 {[%emt 00:00:51]} 55. Kd3 {[%emt 00:00:05]} Ng4
{[%emt 00:00:58]} 56. Ke2 {[%emt 00:00:54]} Ne3 {[%emt 00:00:37]} 57. Kd3 {[%emt
00:00:05]} Kf3 {[%emt 00:02:38]} 58. Bb7 {[%emt 00:00:21]} Ng4 {[%emt 00:00:52]}
59. Bc6 {[%emt 00:00:47]} Nf2+ {[%emt 00:00:10]} 60. Kd2 Kf4 {[%emt 00:00:16]}
61. f6 {[%emt 00:06:51]} gxf6 {[%emt 00:00:13]} 0-1

[Event "50+ Deutsche Senioren-Mannschaftsmeisterschaft der Landesverbände 2022"]
[Site "Magdeburg, Germany"]
[Date "2022.08.29"]
[Round "1.7"]
[White "Mueller, Michael"]
[Black "Hoffmann, Uwe"]
[Result "1-0"]
[TimeControl "90min/40 + 30min + 30s/Zug"]
[WhiteElo "2151"]
[BlackElo "2077"]

1. d4 {[%emt 04:29:35]} Nf6 {[%emt 00:00:09]} 2. Nf3 {[%emt 00:00:15]} d5 {[%emt
00:00:21]} 3. Bf4 {[%emt 00:00:24]} Bf5 {[%emt 00:00:30]} 4. e3 {[%emt
00:00:19]} e6 {[%emt 00:00:11]} 5. Bd3 {[%emt 00:00:17]} Bxd3 {[%emt 00:00:18]}
6. Qxd3 {[%emt 00:00:26]} Bd6 {[%emt 00:00:38]} 7. Bg3 {[%emt 00:00:40]} O-O
{[%emt 00:00:46]} 8. Nbd2 {[%emt 00:00:24]} c5 {[%emt 00:02:18]} 9. c3 {[%emt
00:00:54]} Nc6 {[%emt 00:06:00]} 10. O-O {[%emt 00:03:28]} Bxg3 {[%emt
00:02:57]} 11. hxg3 {[%emt 00:00:09]} Qd6 {[%emt 00:03:05]} 12. Rad1 {[%emt
00:05:13]} Rad8 {[%emt 00:04:12]} 13. Qb5 {[%emt 00:02:35]} cxd4 {[%emt
00:01:39]} 14. exd4 {[%emt 00:01:13]} Qc7 {[%emt 00:03:24]} 15. Rfe1 {[%emt
00:01:54]} a6 {[%emt 00:02:23]} 16. Qd3 {[%emt 00:04:24]} Rfe8 {[%emt 00:08:47]}
17. Re2 {[%emt 00:22:14]} Nd7 {[%emt 00:06:57]} 18. Ng5 {[%emt 00:03:09]} Nf8
{[%emt 00:00:41]} 19. Rde1 {[%emt 00:07:37]} Qe7 {[%emt 00:08:04]} 20. f4 {[%emt
00:02:34]} h6 {[%emt 00:08:41]} 21. Ngf3 {[%emt 00:00:56]} Qd6 {[%emt 00:06:17]}
22. Nb3 {[%emt 00:06:11]} Re7 {[%emt 00:08:12]} 23. Ne5 {[%emt 00:10:37]} Nxe5
{[%emt 00:00:35]} 24. Rxe5 {[%emt 00:01:39]} Rc7 {[%emt 00:03:51]} 25. R5e3
{[%emt 00:08:44]} Ra8 {[%emt 00:03:37]} 26. Qf1 {[%emt 00:03:28]} a5 {[%emt
00:05:13]} 27. Nc1 {[%emt 00:02:04]} Nh7 {[%emt 00:02:48]} 28. Nd3 {[%emt
00:01:29]} Nf6 {[%emt 00:00:50]} 29. Nf2 {[%emt 00:00:17]} Qa6 {[%emt 00:01:27]}
30. R1e2 {[%emt 00:01:05]} b5 {[%emt 00:00:47]} 31. g4 {[%emt 00:00:17]} b4
{[%emt 00:02:19]} 32. g5 {[%emt 00:00:58]} hxg5 {[%emt 00:01:20]} 33. fxg5
{[%emt 00:00:12]} Ne4 {[%emt 00:00:15]} 34. Nxe4 {[%emt 00:01:50]} dxe4 35. Qf4
{[%emt 00:00:13]} Rac8 {[%emt 00:01:53]} 36. Rf2 {[%emt 00:01:02]} bxc3 {[%emt
00:00:45]} 37. bxc3 {[%emt 00:00:59]} Qb7 {[%emt 00:01:53]} 38. g6 {[%emt
00:00:33]} fxg6 {[%emt 00:00:19]} 39. Qg4 {[%emt 00:00:29]} Qd5 {[%emt
00:02:46]} 40. Qxg6 {[%emt 00:00:18]} e5 {[%emt 00:02:10]} 41. Rh3 {[%emt
00:00:41]} Rf7 {[%emt 00:03:25]} 42. Qh7+ {[%emt 00:02:10]} Kf8 {[%emt
00:00:12]} 43. Qh8+ {[%emt 00:00:23]} Ke7 {[%emt 00:00:06]} 44. Rxf7+ {[%emt
00:00:21]} Qxf7 {[%emt 00:01:36]} 45. Qxc8 {[%emt 00:00:11]} Qxa2 {[%emt
00:00:10]} 46. Qc7+ {[%emt 00:00:39]} Ke8 {[%emt 00:02:26]} 1-0

[Event "50+ Deutsche Senioren-Mannschaftsmeisterschaft der Landesverbände 2022"]
[Site "Magdeburg, Germany"]
[Date "2022.08.29"]
[Round "1.8"]
[White "Poetke, Dan-Peter"]
[Black "Mueller, Erich"]
[Result "1/2-1/2"]
[TimeControl "90min/40 + 30min + 30s/Zug"]
[WhiteElo "1989"]
[BlackElo "2098"]

1. Nf3 Nf6 {[%emt 00:00:30]} 2. g3 g6 {[%emt 00:00:16]} 3. Bg2 Bg7 {[%emt
00:00:12]} 4. O-O {[%emt 00:00:04]} d6 {[%emt 00:01:09]} 5. d4 {[%emt 00:00:06]}
Nbd7 {[%emt 00:00:53]} 6. c4 {[%emt 00:01:58]} e5 {[%emt 00:00:59]} 7. Nc3
{[%emt 00:02:06]} O-O {[%emt 00:01:25]} 8. Rb1 {[%emt 00:03:10]} Re8 {[%emt
00:08:19]} 9. Qc2 {[%emt 00:06:10]} c6 {[%emt 00:12:17]} 10. e4 {[%emt
00:10:16]} Nf8 {[%emt 00:04:07]} 11. Rd1 {[%emt 00:03:29]} Qe7 {[%emt 00:06:29]}
12. d5 {[%emt 00:03:46]} c5 {[%emt 00:05:11]} 13. a3 {[%emt 00:04:16]} N8d7
{[%emt 00:02:53]} 14. b4 {[%emt 00:03:10]} a5 {[%emt 00:00:53]} 15. Nb5 {[%emt
00:09:05]} Rf8 {[%emt 00:01:20]} 16. Nc7 {[%emt 00:03:48]} Ra7 {[%emt 00:01:42]}
17. Nb5 {[%emt 00:03:04]} Ra6 {[%emt 00:01:46]} 18. Nc7 {[%emt 00:05:10]} Ra7
{[%emt 00:00:35]} 19. Nb5 Ra6 20. Nc7 1/2-1/2